Cogmind - Beta 13 @@@ ROGUE MODE // 2024.04.16 @ 20:01:21 Player: Modulottie Result: Self-destructed Performance ------------- Evolutions (4) 2000 Regions Visited (5) 1000 Robots Destroyed (57) 285 Value Destroyed (1848) 1848 Prototype IDs (5) 100 Alien Tech Used (0) 0 Bonus (0) 0 TOTAL SCORE: 5233 Bonus ------- None Cogmind --------- Core Integrity 603/850 Matter 205/300 Energy 98/100 System Corruption 1% Temperature Cool (6) Movement Flying (29) Location -6/Factory Parts ------- > --- POWER (2) -------- (None) > --- PROPULSION (4) --- Cesium-ion Thruster Cooled VTOL Module Cooled VTOL Module > --- UTILITY (7) ------ Small Storage Unit Enhanced Optical Array Advanced Signal Interpreter Melee Analysis Suite Hacking Suite System Shield > --- WEAPON (2) ------- Long-range Missile Launcher > --- INVENTORY (8) ---- Improved Surge Thruster Weight Redist. System Triangulator Melee Analysis Suite Hacking Suite Peak State ------------ > --- POWER ------------ Light Nuclear Core Micro Nuclear Core > --- PROPULSION ------- Improved Flight Unit Cooled VTOL Module Cooled VTOL Module Biomechanical Wings > --- UTILITY ---------- Small Storage Unit Improved Sensor Array Advanced Signal Interpreter Melee Analysis Suite Cloaking Device Hacking Suite System Shield > --- WEAPON ----------- Chainsword > --- INVENTORY -------- Xenon Bombardment Thruster Improved Surge Thruster Weight Redist. System Triangulator Enhanced Optical Array Melee Analysis Suite Reaction Control System Heavy Rocket Launcher [Rating: 56] Favorites ----------- Power Micro Nuclear Core Engine Light Ion Engine Power Core Micro Nuclear Core Propulsion Aluminum Leg Leg Aluminum Leg Flight Unit Cooled VTOL Module Utility Improved Sensor Array Device Improved Sensor Array Storage Large Storage Unit Processor Targeting Computer Hackware Hacking Suite Protection Hardened Light Armor Plating Weapon Minigun Energy Gun Particle Gun Ballistic Gun Minigun Launcher Long-range Missile Launcher Impact Weapon Powered Hammer Slashing Weapon Chainsword Build | -11 -10 -9 -8 -7 -6 ------- Run | Yrd Mat Mat Mat Fac Fac Slots Evolved 8 | . . 2 2 2 2 Power 1 | . . . . . 1 Propulsion 2 | . . 1 1 . . Utility 5 | . . 1 1 2 1 Weapon . | . . . . . . Parts Attached 87 | 6 6 12 8 30 25 Power 9 | 1 . 2 . 2 4 Engine 5 | 1 . 2 . 1 1 Core 4 | . . . . 1 3 Reactor . | . . . . . . Propulsion 20 | 2 . 1 3 8 6 Treads . | . . . . . . Leg 8 | 2 . 1 3 2 . Wheel . | . . . . . . Hover . | . . . . . . Flight 12 | . . . . 6 6 Utility 37 | 1 3 6 3 13 11 Device 17 | . 1 3 1 6 6 Storage 3 | 1 1 . . 1 . Processor 4 | . 1 . . . 3 Hackware 5 | . . . . 3 2 Protection 8 | . . 3 2 3 . Artifact . | . . . . . . Weapon 21 | 2 3 3 2 7 4 Energy Gun 2 | 1 1 . . . . Energy Cannon . | . . . . . . Ballistic Gun 8 | 1 1 3 1 2 . Ballistic Cannon . | . . . . . . Launcher 6 | . 1 . 1 1 3 Special Weapon . | . . . . . . Impact Weapon 4 | . . . . 4 . Slashing Weapon 1 | . . . . . 1 Piercing Weapon . | . . . . . . Special Melee Weapon . | . . . . . . Unidentified Prototypes 5 | . . 2 . 2 1 Parts Lost 24 | . . . 3 10 11 Power 5 | . . . 1 . 4 Propulsion 9 | . . . 2 3 4 Utility 8 | . . . . 6 2 Weapon 2 | . . . . 1 1 Highest Loss Streak 7 | . . . 3 4 7 To Critical Strikes . | . . . . . . Average Slot Usage (%) 92 | . 99 99 97 85 91 Engine 5 | . 14 11 7 6 . Core 4 | . . . . . 12 Leg 17 | . 28 33 35 22 . Flight 10 | . . . . 4 25 Device 9 | . 2 5 7 7 15 Storage 8 | . 14 11 9 7 6 Processor 7 | . 10 11 9 4 8 Hackware 5 | . . . . 4 11 Protection 5 | . . 5 10 11 1 Energy Gun 2 | . 14 6 . . . Ballistic Gun 8 | . 13 14 18 10 . Impact Weapon 1 | . . . . 2 1 Slashing Weapon 1 | . . . . . 4 Naked Turns . | . . . . . . Heaviest Build 40 | 11 28 34 35 40 36 Greatest Support 45 | 20 20 36 40 45 27 Greatest Overweight (x) 3 | 3 1 1 1 2 1 Average Overweight (x) . | . . . . . . Largest Inventory Capacity 15 | 8 15 15 15 15 8 Average Capacity 11 | 7 10 15 15 14 8 Most Carried 15 | 3 13 15 15 15 8 Average Carried 10 | 1 8 14 14 12 7 Final Capacity 15 | 8 15 15 15 8 8 Final Carried 15 | 3 13 15 15 8 5 Class Distribution -------------------- 46% | Mutant 28% | Hacker-Sprinter 18% | Scavenger-Mutant 4% | Sprinter Dominant Class ---------------- Mutant | -10/Materials Mutant | -9/Materials Mutant | -8/Materials Scavenger-Mutant | -7/Factory Hacker-Sprinter | -6/Factory Resources | -11 -10 -9 -8 -7 -6 ----------- Run | Yrd Mat Mat Mat Fac Fac Matter Collected 1479 | 207 199 171 309 366 227 Remotely . | . . . . . . Salvage Created 1873 | . 222 324 414 490 423 Parts 105 | . 20 14 27 15 29 Haulers Intercepted 4 | . 2 1 . 1 . Recyclers Shooed 3 | . 2 1 . . . Parts Field Recycled 24 | . . . . . 24 Retrieved Matter 388 | . . . . . 388 Parts Self-Destructed . | . . . . . . Prevented . | . . . . . . Kills | -11 -10 -9 -8 -7 -6 ------- Run | Yrd Mat Mat Mat Fac Fac Combat Hostiles Destroyed 38 | . 7 3 8 9 11 Melee 6 | . . . . . 6 Guns 16 | . 2 3 8 3 . AOE 12 | . 5 . . 2 5 Classes Destroyed 13 | . 5 2 . 4 2 Worker 4 | . . . . . 4 Builder 1 | . 1 . . . . Tunneler 1 | . . . . 1 . Hauler 4 | . 2 1 . 1 . Recycler 2 | . . 1 . 1 . Operator 2 | . . . . 1 1 Watcher 5 | . 1 2 1 . 1 Swarmer 6 | . 3 . . . 3 Cutter 1 | . . . . . 1 Grunt 21 | . 4 2 5 7 3 Sentry 5 | . . 1 3 . 1 Hunter 1 | . . . . 1 . Programmer 4 | . . . . 1 3 Best Kill Streak 10 | . 6 3 3 4 10 Combat Bots Only 5 | . 5 2 3 3 5 Max Kills in Single Turn 3 | . 2 1 1 2 3 Gunslinging . | . . . . . . Exploded 2 | . 2 . . 1 1 Melee 1 | . . . . . 1 Uniques/NPCs Destroyed . | . . . . . . Combat | -11 -10 -9 -8 -7 -6 -------- Run | Yrd Mat Mat Mat Fac Fac Hostile Shots Fired 285 | . 31 12 42 107 93 Missed 96 | . 12 5 14 34 31 Damage Taken 2865 | . 231 97 431 1073 1033 Core 474 | . 39 . . 188 247 Absorbed by Shields . | . . . . . . Core Remaining (%) 91 | 100 84 100 100 73 . Volleys Fired 120 | . 27 25 30 28 10 Largest 2 | . 2 2 2 2 1 Hottest 88 | . 85 88 50 64 43 Shots Fired 214 | . 48 46 59 51 10 Gun 194 | . 42 46 58 48 . Cannon . | . . . . . . Launcher 20 | . 6 . 1 3 10 Special . | . . . . . . Kinetic 156 | . 21 29 58 48 . Thermal 38 | . 21 17 . . . Explosive 20 | . 6 . 1 3 10 Electromagnetic . | . . . . . . Robot Hit Streak 18 | . 18 16 15 6 9 Robot Miss Streak 5 | . 1 3 3 5 . Penetration Max . | . . . . . . Secondary Targets 1 | . . . . 1 . Max Gunslinging Chain 1 | . . . . 1 . Shots Hit Robots 175 | . 36 32 40 39 28 Core Hits 87 | . 18 11 17 14 27 Critical Kills 1 | . . . 1 . . Critical Parts Destroyed 3 | . . . 1 2 . Critical Strikes 7 | . . 2 2 2 1 Burn 2 | . . 2 . . . Destroy 2 | . . . 2 . . Smash 2 | . . . . 2 . Sever 1 | . . . . . 1 Melee Attacks 74 | . . . . 28 46 Impact 28 | . . . . 28 . Slashing 46 | . . . . . 46 Piercing . | . . . . . . Sneak Attacks 2 | . . . . . 2 Combat Hostiles 1 | . . . . . 1 Follow-up Attacks . | . . . . . . Damage Inflicted 5802 | . 1163 513 678 1414 2034 Guns 2072 | . 469 513 659 431 . Cannons . | . . . . . . Explosions 2354 | . 691 . 19 462 1182 Melee 1373 | . . . . 521 852 Ramming 3 | . 3 . . . . Kinetic 1592 | . 226 276 659 431 . Thermal 480 | . 243 237 . . . Explosive 2354 | . 691 . 19 462 1182 Electromagnetic . | . . . . . . Impact 521 | . . . . 521 . Slashing 852 | . . . . . 852 Piercing . | . . . . . . Highest Corruption 2 | . . . . 2 1 Average Corruption 1 | . . . . 1 1 Corruption Purged . | . . . . . . Corruption Blocked . | . . . . . . Effects 9 | . . . . 5 4 Message Errors 1 | . . . . 1 . Matter Fused 5 | . . . . 2 3 Heat Flow Errors 1 | . . . . 1 . Data Loss (minor) 1 | . . . . 1 . Data Loss (major) 1 | . . . . . 1 Overload Shots . | . . . . . . Overflow Damage 302 | . 12 . . 202 88 Projectiles . | . . . . . . Explosions 72 | . 12 . . 28 32 Melee 230 | . . . . 174 56 Knockbacks 4 | . . . . 4 . Impact 4 | . . . . 4 . Kinetic . | . . . . . . Secondary . | . . . . . . Self-Inflicted Damage . | . . . . . . Shots . | . . . . . . Rammed . | . . . . . . Targets Rammed 1 | . 1 . . . . Kicked 1 | . 1 . . . . Crushed . | . . . . . . Highest Temperature 265 | . 108 141 83 265 7 Average Temperature 42 | . 42 51 23 51 4 Received Heat Transfer 867 | . 114 63 243 351 96 Siege Activations . | . . . . . . Robots Corrupted . | . . . . . . Combat Hostiles . | . . . . . . Parts Fried 2 | . . . . 2 . Impact Corruptions 7 | . . . . 7 . Robots Melted . | . . . . . . Combat Hostiles . | . . . . . . Parts Melted . | . . . . . . Heat Transferred 1273 | . 570 703 . . . Parts Sabotaged . | . . . . . . Parts Stolen . | . . . . . . Parts Stripped . | . . . . . . Power Chain Reactions . | . . . . . . Alert | -11 -10 -9 -8 -7 -6 ------- Run | Yrd Mat Mat Mat Fac Fac Peak Influence 294 | . 226 138 269 209 294 Initial 46 | . . 13 . 37 46 Average 77 | . 113 68 121 82 56 Maximum Alert Level 1 | . 1 . 1 1 1 Low Security (%) 92 | 100 69 100 71 99 98 Level 1 7 | . 30 . 28 . 1 Level 2 . | . . . . . . Level 3 . | . . . . . . Level 4 . | . . . . . . Level 5 . | . . . . . . High Security . | . . . . . . Max Security . | . . . . . . Squads Dispatched 19 | . 1 . 2 5 11 Investigation 6 | . . . 2 1 3 Extermination 5 | . . . . 1 4 Reinforcement 8 | . 1 . . 3 4 Assault . | . . . . . . Garrison . | . . . . . . Intercept . | . . . . . . Searches Triggered . | . . . . . . Construction Impeded 1 | . . . . . 1 Haulers Reinforced 1 | . . . . 1 . Active Scanning Responses . | . . . . . . Cargo Convoy Interrupts . | . . . . . . Stealth | -11 -10 -9 -8 -7 -6 --------- Run | Yrd Mat Mat Mat Fac Fac Distress Signals 3 | . . 1 1 1 . Communications Jammed . | . . . . . . Distress Signals . | . . . . . . Times Spotted 74 | . 8 8 13 16 29 Peak Tracking Total 7 | . 5 3 4 5 7 Tactical Retreats 4 | . . . . 1 3 Traps | -11 -10 -9 -8 -7 -6 ------- Run | Yrd Mat Mat Mat Fac Fac Traps Triggered 1 | . . . . 1 . Indirectly . | . . . . . . Trap Hack Attempts . | . . . . . . Triggered . | . . . . . . Disarmed . | . . . . . . Reprogrammed . | . . . . . . Reused . | . . . . . . Traps Extracted . | . . . . . . Installed . | . . . . . . Triggered . | . . . . . . Machines | -11 -10 -9 -8 -7 -6 ---------- Run | Yrd Mat Mat Mat Fac Fac Machines Disabled 6 | . . . 1 4 1 Max in Single Turn 2 | . . . 1 2 1 Machines Repaired . | . . . . . . Machines Dismantled . | . . . . . . Machines Sabotaged . | . . . . . . Overloaded Fab Kills . | . . . . . . Hacking | -11 -10 -9 -8 -7 -6 --------- Run | Yrd Mat Mat Mat Fac Fac Machines Accessed 23 | . 1 2 3 9 8 Terminals 19 | . 1 2 3 7 6 Fabricators 3 | . . . . 1 2 Repair Stations . | . . . . . . Recycling Units . | . . . . . . Scanalyzers 1 | . . . . 1 . Garrison Access . | . . . . . . Total Hacks 53 | . 1 3 8 17 24 Successful 22 | . . 1 5 8 8 Failed 31 | . 1 2 3 9 16 Catastrophic 12 | . 1 2 . 3 6 Database Lockouts . | . . . . . . Manual 31 | . 1 2 1 12 15 Terminals 42 | . 1 3 8 12 18 Fabricators 8 | . . . . 2 6 Repair Stations . | . . . . . . Recycling Units . | . . . . . . Scanalyzers 3 | . . . . 3 . Garrison Access . | . . . . . . Terminal Hacks 13 | . . 1 5 3 4 Open DSF 1 | . . . . 1 . Emergency Access Points 2 | . . . 1 . 1 Fabricator Index 2 | . . . 1 1 . Alert Level 1 | . . . 1 . . Unreport Threat 1 | . . . . 1 . Locate Traps 3 | . . 1 1 . 1 Registered Components 1 | . . . 1 . . Zone Layout 2 | . . . . . 2 Fabricator Hacks 6 | . . . . 2 4 Load Schematic 3 | . . . . 1 2 Build 3 | . . . . 1 2 Repair Station Hacks . | . . . . . . Recycling Unit Hacks . | . . . . . . Scanalyzer 3 | . . . . 3 . Insert Component 1 | . . . . 1 . Analyze 2 | . . . . 2 . Garrison Access Hacks . | . . . . . . Unauthorized Hacks . | . . . . . . Terminals . | . . . . . . Fabricators . | . . . . . . Repair Stations . | . . . . . . Recycling Units . | . . . . . . Scanalyzers . | . . . . . . Garrison Access . | . . . . . . Data Cores Recovered . | . . . . . . Used . | . . . . . . Hacking Detections 20 | . 1 1 3 7 8 Full Trace Events 6 | . . . 2 1 3 Feedback Events . | . . . . . . Feedback Blocked . | . . . . . . Robot Schematics Acquired . | . . . . . . Robots Built . | . . . . . . Authchips . | . . . . . . Time . | . . . . . . Total Robot Build Rating . | . . . . . . Part Schematics Acquired 1 | . . . . 1 . Parts Built 3 | . . . . 1 2 Authchips . | . . . . . . Time 402 | . . . . 134 268 Total Part Build Rating 12 | . . . . 4 8 Parts Repaired . | . . . . . . Time . | . . . . . . Parts Recycled . | . . . . . . Recycled Matter . | . . . . . . Retrieved Matter . | . . . . . . Retrieved Components . | . . . . . . Parts Scanalyzed 1 | . . . . 1 . Part Schematics Acquired 1 | . . . . 1 . Parts Damaged . | . . . . . . Bothacking | -11 -10 -9 -8 -7 -6 ------------ Run | Yrd Mat Mat Mat Fac Fac Used RIF Installer . | . . . . . . Robots Hacked . | . . . . . . Non-combat . | . . . . . . Combat . | . . . . . . Robot Hacks Applied . | . . . . . . Relay Couplers Released . | . . . . . . Fabnet Peak Effective % . | . . . . . . Robots Rewired . | . . . . . . Allies Hacked . | . . . . . . Hacks Repelled . | . . . . . . Allies | -11 -10 -9 -8 -7 -6 -------- Run | Yrd Mat Mat Mat Fac Fac Total Allies . | . . . . . . Largest Group . | . . . . . . Highest-Rated Group . | . . . . . . Highest-Rated Ally . | . . . . . . Total Orders . | . . . . . . Ally Attacks . | . . . . . . Total Damage . | . . . . . . Kills . | . . . . . . Allies Corrupted . | . . . . . . Allies Melted . | . . . . . . Intel | -11 -10 -9 -8 -7 -6 ------- Run | Yrd Mat Mat Mat Fac Fac Robot Analysis Total . | . . . . . . Derelict Logs Recovered . | . . . . . . Drone Launches . | . . . . . . Drone Recoveries . | . . . . . . Exploration | -11 -10 -9 -8 -7 -6 ------------- Run | Yrd Mat Mat Mat Fac Fac Turns Passed 4240 | 72 504 431 443 1244 1546 Spaces Moved 4648 | 47 270 229 252 965 2885 Core 8 | 8 . . . . . Treads . | . . . . . . Legs 1457 | 39 270 229 252 667 . Wheels . | . . . . . . Hover . | . . . . . . Flight 3183 | . . . . 298 2885 Fastest Speed 26 | 50 120 120 120 28 26 Average Speed 64 | 128 143 138 121 98 33 Slowest Speed 260 | 200 190 190 190 260 95 Overloaded Moves . | . . . . . . Propulsion Burnouts . | . . . . . . Robots Hopped . | . . . . . . Cave-ins Triggered . | . . . . . . Exploration Rate (%) 26 | 4 34 22 26 27 46 Regions Visited 5 Branch Regions . Pre-discovered Areas . | . . . . . . Known Exits Taken . | . . . . . . Unknown Exits Taken 5 | 1 1 1 1 1 . Scrap Searched . | . . . . . . Spaces Dug 28 | . . . . 10 18 Terrain Destroyed 137 | . 28 . 8 34 67 Melee 28 | . . . . 10 18 Projectile . | . . . . . . AOE 109 | . 28 . 8 24 49 Terrain Rammed . | . . . . . . Walls Destroyed . | . . . . . . Machines Disabled . | . . . . . . Actions | -11 -10 -9 -8 -7 -6 --------- Run | Yrd Mat Mat Mat Fac Fac Total 5593 | 55 340 299 341 1163 3395 Wait 554 | . 17 12 45 90 390 Move 4643 | 46 269 228 251 964 2885 Hop . | . . . . . . Pick Up 50 | 3 14 9 4 6 14 Fast Attach 31 | 6 1 6 2 5 11 Attach 24 | . . 2 2 11 9 Detach 10 | . . 1 . 3 6 Swap 32 | . 5 4 4 14 5 Drop 49 | . 6 12 3 9 19 Fire 120 | . 27 25 30 28 10 Melee 74 | . . . . 28 46 Ram . | . . . . . . Kick 1 | . 1 . . . . Crush . | . . . . . . Escape Stasis 5 | . . . . 5 . Rewire . | . . . . . . Trap . | . . . . . . Miscellaneous . | . . . . . . Route ------- -11/Scrapyard -10/Materials -9/Materials -8/Materials -7/Factory -6/Factory (discovered 1 exit: [*Low]) History --------- Turn | Location | Event 10 | -11/Scrapyard | Discovered new exit (range 16) 73 | -11/Scrapyard | Entered Materials 213 | -10/Materials | Discovered new exit (range 13) 321 | -10/Materials | Build established: Mutant 577 | -10/Materials | Entered another Materials area 577 | -9/Materials | Evolved 2 slots: Propulsion x1, Utility x1 938 | -9/Materials | Discovered new exit (range 6) 1008 | -9/Materials | Entered another Materials area 1008 | -8/Materials | Evolved 2 slots: Propulsion x1, Utility x1 1426 | -8/Materials | Lost 3 parts (1p2n) 1427 | -8/Materials | Discovered new exit (range 15) 1451 | -8/Materials | Entered Factory 1451 | -7/Factory | Evolved 2 slots: Utility x2 1559 | -7/Factory | Identified exit to DSF 1838 | -7/Factory | Build established: Scavenger-Mutant 2280 | -7/Factory | Lost 3 parts (1n2u) 2419 | -7/Factory | Fabricated Cld. VTOL Module? 2474 | -7/Factory | Lost 4 parts (1n2u1w) 2677 | -7/Factory | Discovered new exit (range 8) 2695 | -7/Factory | Entered another Factory area 2695 | -6/Factory | Evolved 2 slots: Power x1, Utility x1 3281 | -6/Factory | Build established: Hacker-Sprinter 3501 | -6/Factory | Fabricated Cld. VTOL Module? 3867 | -6/Factory | Fabricated Cld. VTOL Module? 4151 | -6/Factory | Lost 3 parts (2p1u) 4236 | -6/Factory | Discovered new exit (range 20) 4241 | -6/Factory | Self-destructed Last Messages --------------- 04225_ K-01 Serf destroyed. 04225_ ALERT: Construction progress impeded, dispatching reinforcements to local area. 04226_ Chainsword destroyed. 04227_ Destroyed Carbon-fiber Leg. 04227_ W-25 Informer destroyed. 04228_ The unstable cave ceiling collapses. 04229_ G-50 Soldier destroyed. 04230_ The unstable cave ceiling collapses. 04236_ EXIT=FOUND 04236_ K-01 Serf destroyed. 04236_ K-01 Serf collects debris. 04237_ H-61 Shepherd calls for reinforcements. 04237_ ALERT: Hostile activity reported, dispatching reinforcements to area. 04239_ Knocked back. 04239_ Lgt. Deuterium Engine destroyed. 04239_ Knocked back. 04240_ Cld. VTOL Module destroyed. 04240_ Knocked back. Map ----- +----------------------------------------------------+ | ????????????????????# # """" ? ??? | | ????????????????????# # ?? | | ????????????????????# # """" ?? | | ????????????????????# # """" ? | | ????????????????????# + """" | | ????????????????????# # | | ????????????????????# # | | ????????????????????# # #####+####? | | ????????????????????# # #?????????? | | ????????????????????# # #?????????? | | ????????????????????# # #?????????? | | ????????????????????############## #?????????? | | ?????????????????????????????????# #?????????? | | ?????????????????????????????????# #?????????? | | ?????????????????????????????????# #?????????? | | ??????????????????????????######## #?????????? | | ??????????????????????????# #?????????? | | ??????????????????????????# #?????????? | | ??????????????????????????# #?????????? | | ??????????????????????????# k""" """ #?????????? | | ?????????????????????????## """ """ #?????????? | | ? ??????????????????????## """ """ #?????????? | | ?/ ##########+########## #?????????? | | ] % k #?????????? | | "F"" #?????????? | | < @ """" #?????????? | | c c #?????????? | | R m #???####### | | ???? ############ ### ###### #???# | | ?????????????????### ###### #????# #???# | | ???????????????##### # # #????# ##### | | ?????????????### # # # #????# # | | ?????????????# # # + #????# # "" | | ??????######## # #????# # "" | | ??????#]] ! # #???## + "" | | ?????##]] # #???# # | | ?????#" ] % ### #???#T # "" | | ?????##] # #???## # "" | | ??????# """ #????# # "" | | ??????# """ #????# # | | ??????# """ #????# ####### | | ??????# #????# #?????? | | ??????# " " ##### ########????# #?????? | | ??????# ""R"" #???# #???????????# #?????? | | ??????# """"" #???# #???????????# ####### | | ??????# ! #???# #???????????# | | ??????##################+############# | | ???????????????????## # ! """ | | ???????????????????## """ """ """ + """ | | ????????????????????# """ """ """ # """ | +----------------------------------------------------+ Best States ------------- Heat Dissipation 37 Energy Generation 27 Energy Capacity 280 Matter Stores 300 Matter Capacity 300 Sight Range 22 Robot Scan Range 16 Terrain Scan Range 20 Terrain Scan Density 10 Cloak Strength 2 Additional Mass Support 6 Armor Coverage 300 Resistance: TH 10 Evasion (%) 64 Targeting Accuracy 5 Melee Accuracy 5 Offensive Hacking 20 Defensive Hacking 10 Item Schematics ----------------- Cld. VTOL Module | -7/Factory | Scanalyzed Robot Schematics ------------------ None Fabricated ------------ Cld. VTOL Module | x1 | -7/Factory Cld. VTOL Module | x1 | -6/Factory Cld. VTOL Module | x1 | -6/Factory Alien Tech Used ----------------- None Achievements -------------- I Spy Challenges ------------ None Game ------ Seed ReactionExperimentalDetector Manual? 0 Play Time 01:25:20 Cumulative 7.7 hours Start 2024.04.15 @ 22:21:10 End 2024.04.16 @ 20:01:21 Sessions 3 Manual Loads 0 Difficulty Rogue Special Mode None Game No. 8 Rogue 8 Adventurer 0 Explorer 0 Win Type - Total 0 Types 0/0/0/0/0/0/0/0/0 Lore% 1 Gallery% 14 Achievement% 10 Wizard Run 0 Options --------- Layout 1 ASCII 0 Keyboard 0 Movement Numpad Keybinds 0 Fullscreen 1 Font 24/Terminus Map View 50x35 Zoom Use 0% Tactical HUD 1 Map Filters NONE Filters NONE Steam 1 RUN: 12282023-760c-4575-bca6-7a0778ff263c